fUSD/lending_fUSD_20250916
["ID","MTS","AMOUNT","RATE_DAILY","PERIOD"]
[385816333,1758055907063,-400.0,0.0003178,6]
[385816334,1758055907073,-542.77,0.0003178,6]
[385816335,1758055907082,-400.0,0.0003178,6]
[385816336,1758055907092,-400.0,0.0003178,6]
[385816337,1758055907102,-400.0,0.0003178,6]
[385816338,1758055907113,-400.0,0.0003178,6]
[385816339,1758055907123,-400.0,0.0003178,6]
[385816340,1758055907138,-582.39,0.0003178,6]
[385816341,1758055907148,-479.79,0.0003178,6]
[385816342,1758055907160,-400.0,0.0003178,6]
[385816343,1758055907171,-532.53,0.0003178,6]
[385816344,1758055907183,-470.32829007,0.0003178,6]
[385816345,1758055907192,-400.0,0.0003178,6]
[385816346,1758055907202,-400.0,0.0003178,6]
[385816347,1758055907212,-619.12,0.0003178,6]
[385816348,1758055907222,-3974.25,0.0003178,6]
[385816349,1758055907232,-441.55,0.0003178,6]
[385816350,1758055907244,-400.0,0.0003178,6]
[385816351,1758055907256,-563.92,0.0003178,6]
[385816352,1758055907266,-400.0,0.0003178,6]
[385816353,1758055907283,-548.54,0.0003178,6]
[385816354,1758055907295,-400.0,0.0003178,6]
[385816355,1758055907307,-400.0,0.0003178,6]
[385816356,1758055907317,-421.81,0.0003178,6]
[385816357,1758055907328,-400.0,0.0003178,6]
[385816358,1758055907341,-400.0,0.0003178,6]
[385816359,1758055907354,-518.36,0.0003178,6]
[385816360,1758055907365,-400.0,0.0003178,6]
[385816361,1758055907375,-510.5,0.0003178,6]
[385816362,1758055907386,-400.0,0.0003178,6]
[385816363,1758055907396,-701.31,0.0003178,6]
[385816364,1758055907406,-349.25653552,0.0003178,6]
[385816365,1758055907416,-400.0,0.0003178,6]
[385816366,1758055907426,-400.0,0.0003178,6]
[385816367,1758055907436,-197.58439999,0.0003178,6]
[385816368,1758055907446,-400.0,0.0003178,6]
[385816369,1758055907457,-400.0,0.0003178,6]
[385816370,1758055907467,-400.0,0.0003178,6]
[385816371,1758055907477,-415.13,0.0003178,6]
[385816372,1758055907487,-400.0,0.0003178,6]
[385816373,1758055907497,-636.08,0.0003178,6]
[385816374,1758055907507,-400.0,0.0003178,6]
[385816375,1758055907517,-415.03462179,0.0003178,6]
[385816376,1758055907527,-509.49,0.0003178,6]
[385816377,1758055907540,-400.0,0.0003178,6]
[385816378,1758055907550,-400.0,0.0003178,6]
[385816379,1758055907560,-501.58,0.0003178,6]
[385816380,1758055907571,-400.0,0.0003178,6]
[385816381,1758055907581,-400.0,0.0003178,6]
[385816382,1758055907591,-400.0,0.0003178,6]
[385816383,1758055907601,-400.0,0.0003178,6]
[385816384,1758055907612,-1169.89,0.0003178,6]
[385816385,1758055907622,-400.0,0.0003178,6]
[385816386,1758055907631,-400.0,0.0003178,6]
[385816387,1758055907641,-400.0,0.0003178,6]
[385816388,1758055907652,-400.0,0.0003178,6]
[385816389,1758055907662,-420.32,0.0003178,6]
[385816390,1758055907671,-400.0,0.0003178,6]
[385816391,1758055907682,-452.7052671,0.0003178,6]
[385816392,1758055907692,-400.0,0.0003178,6]
[385816393,1758055907702,-331.26124684,0.0003178,6]
[385816394,1758055907713,-400.0,0.0003178,6]
[385816395,1758055907723,-543.26804367,0.0003178,6]
[385816396,1758055907734,-400.0,0.0003178,6]
[385816397,1758055907744,-400.0,0.0003178,6]
[385816398,1758055907754,-400.0,0.0003178,6]
[385816399,1758055907764,-400.0,0.0003178,6]
[385816400,1758055907775,-309.95413014,0.0003178,6]
[385816401,1758055907785,-400.0,0.0003178,6]
[385816402,1758055907795,-515.27,0.0003178,6]
[385816403,1758055907805,-400.0,0.0003178,6]
[385816404,1758055907816,-625.17,0.0003178,6]
[385816405,1758055907826,-400.0,0.0003178,6]
[385816406,1758055907835,-400.0,0.0003178,6]
[385816407,1758055907845,-333.74041888,0.0003178,6]
[385816408,1758055907855,-439.62,0.0003178,6]
[385816409,1758055907865,-400.0,0.0003178,6]
[385816410,1758055907875,-400.0,0.0003178,6]
[385816411,1758055907886,-179.43237619,0.0003178,6]
[385816412,1758055907896,-511.44,0.0003178,6]
[385816413,1758055907907,-735.9,0.0003178,6]
[385816414,1758055907917,-1007.96,0.0003178,6]
[385816415,1758055907927,-400.0,0.0003178,6]
[385816416,1758055907939,-400.0,0.0003178,6]
[385816417,1758055907949,-457.27,0.0003178,6]
[385816418,1758055907959,-405.58675373,0.0003178,6]
[385816419,1758055907969,-468.84,0.0003178,6]
[385816420,1758055907980,-539.99,0.0003178,6]
[385816421,1758055907990,-243.48947057,0.0003178,6]
[385816422,1758055908002,-592.52,0.0003178,6]
[385816423,1758055908012,-414.16,0.0003178,6]
[385816424,1758055908022,-431.48,0.0003178,6]
[385816425,1758055908032,-400.0,0.0003178,6]
[385816426,1758055908044,-400.0,0.0003178,6]
[385816427,1758055908054,-459.27,0.0003178,6]
[385816428,1758055908064,-400.0,0.0003178,6]
[385816429,1758055908074,-400.0,0.0003178,6]
[385816430,1758055908086,-952.83,0.0003178,6]
[385816431,1758055908096,-714.98,0.0003178,6]
[385816432,1758055908106,-400.0,0.0003178,6]
[385816433,1758055908116,-946.11,0.0003178,6]
[385816434,1758055908127,-2413.87,0.0003178,6]
[385816435,1758055908137,-502.49,0.0003178,6]
[385816436,1758055908147,-525.48,0.0003178,6]
[385816437,1758055908157,-411.93305349,0.0003178,6]
[385816438,1758055908167,-400.0,0.0003178,6]
[385816439,1758055908177,-528.5,0.0003178,6]
[385816440,1758055908187,-175.49951819,0.0003178,6]
[385816441,1758055908197,-485.03,0.0003178,6]
[385816442,1758055908208,-499.88,0.0003178,6]
[385816443,1758055908217,-634.51,0.0003178,6]
[385816444,1758055908228,-300.0,0.0003178,6]
[385816445,1758055908238,-400.0,0.0003178,6]
[385816446,1758055908248,-632.16,0.0003178,6]
[385816447,1758055908259,-400.0,0.0003178,6]
[385816448,1758055908269,-885.28,0.0003178,6]
[385816449,1758055908279,-400.0,0.0003178,6]
[385816450,1758055908290,-472.66,0.0003178,6]
[385816451,1758055908300,-400.0,0.0003178,6]
[385816452,1758055908309,-458.62,0.0003178,6]
[385816453,1758055908319,-989.12,0.0003178,6]
[385816454,1758055908329,-400.0,0.0003178,6]
[385816455,1758055908340,-400.0,0.0003178,6]
[385816456,1758055908354,-432.05,0.0003178,6]
[385816457,1758055908363,-400.0,0.0003178,6]
[385816458,1758055908373,-400.0,0.0003178,6]
[385816459,1758055908383,-400.0,0.0003178,6]
[385816460,1758055908394,-400.0,0.0003178,6]
[385816461,1758055908403,-566.3,0.0003178,6]
[385816462,1758055908414,-403.92,0.0003178,6]
[385816463,1758055908425,-1276.01,0.0003178,6]
[385816464,1758055908435,-400.0,0.0003178,6]
[385816465,1758055908445,-400.0,0.0003178,6]
[385816466,1758055908455,-418.68181841,0.0003178,6]
[385816467,1758055908465,-400.0,0.0003178,6]
[385816468,1758055908474,-400.0,0.0003178,6]
[385816469,1758055908483,-400.0,0.0003178,6]
[385816470,1758055908493,-418.98,0.0003178,6]
[385816471,1758055908503,-2326.43,0.0003178,6]
[385816472,1758055908513,-400.0,0.0003178,6]
[385816473,1758055908523,-538.32,0.0003178,6]
[385816474,1758055908533,-400.0,0.0003178,6]
[385816475,1758055908798,-579.99,0.0003178,6]
[385816476,1758055908821,-400.0,0.0003178,6]
[385816477,1758055908831,-400.0,0.0003178,6]
[385816478,1758055908841,-1109.01,0.0003178,6]
[385816479,1758055908851,-400.0,0.0003178,6]
[385816480,1758055908861,-867.79,0.0003178,6]
[385816481,1758055908870,-400.0,0.0003178,6]
[385816482,1758055908880,-400.0,0.0003178,6]
[385816483,1758055908890,-1132.05,0.0003178,6]
[385816484,1758055908899,-1010.91,0.0003178,6]
[385816485,1758055908909,-449.54,0.0003178,6]
[385816486,1758055908919,-662.74,0.0003178,6]
[385816487,1758055908928,-533.65,0.0003178,6]
[385816488,1758055908938,-400.0,0.0003178,6]
[385816489,1758055908947,-400.0,0.0003178,6]
[385816490,1758055908956,-400.0,0.0003178,6]
[385816491,1758055908965,-648.06,0.0003178,6]
[385816492,1758055908975,-1125.68,0.0003178,6]
[385816493,1758055908985,-539.15,0.0003178,6]
[385816494,1758055908995,-400.0,0.0003178,6]
[385816495,1758055909004,-493.22,0.0003178,6]
[385816496,1758055909014,-400.0,0.0003178,6]
[385816497,1758055909023,-589.24,0.0003178,6]
[385816498,1758055909033,-624.32,0.0003178,6]
[385816499,1758055909042,-400.0,0.0003178,6]
[385816500,1758055909052,-798.32,0.0003178,6]
[385816501,1758055909062,-1260.04,0.0003178,6]
[385816502,1758055909072,-623.88,0.0003178,6]
[385816503,1758055909082,-400.0,0.0003178,6]
[385816504,1758055909091,-540.9,0.0003178,6]
[385816505,1758055909101,-576.24,0.0003178,6]
[385816506,1758055909111,-400.0,0.0003178,6]
[385816507,1758055909122,-483.13,0.0003178,6]
[385816508,1758055909131,-400.0,0.0003178,6]
[385816509,1758055909141,-1873.62,0.0003178,6]
[385816510,1758055909151,-619.08,0.0003178,6]
[385816511,1758055909161,-483.51,0.0003178,6]
[385816512,1758055909171,-400.0,0.0003178,6]
[385816513,1758055909181,-684.05,0.0003178,6]
[385816514,1758055909191,-3866.02,0.0003178,6]
[385816515,1758055909201,-832.27,0.0003178,6]
[385816516,1758055909210,-400.0,0.0003178,6]
[385816517,1758055909221,-400.0,0.0003178,6]
[385816518,1758055909232,-1080.44,0.0003178,6]
[385816519,1758055909241,-400.0,0.0003178,6]
[385816520,1758055909251,-400.0,0.0003178,6]
[385816521,1758055909261,-400.0,0.0003178,6]
[385816522,1758055909270,-400.0,0.0003178,6]
[385816523,1758055909280,-400.0,0.0003178,6]
[385816524,1758055909289,-400.0,0.0003178,6]
[385816525,1758055909299,-400.0,0.0003178,6]
[385816526,1758055909308,-539.06,0.0003178,6]
[385816527,1758055909319,-603.43,0.0003178,6]
[385816528,1758055909329,-400.0,0.0003178,6]
[385816529,1758055909339,-674.22,0.0003178,6]
[385816530,1758055909353,-881.46,0.0003178,6]
[385816531,1758055909363,-416.64,0.0003178,6]
[385816532,1758055909374,-456.38,0.0003178,6]
[385816533,1758055909384,-594.86,0.0003178,6]
[385816534,1758055909395,-500.02,0.0003178,6]
[385816535,1758055909406,-4462.76,0.0003178,6]
[385816536,1758055909417,-416.47,0.0003178,6]
[385816537,1758055909428,-691.5,0.0003178,6]
[385816538,1758055909439,-863.73,0.0003178,6]
[385816539,1758055909450,-400.0,0.0003178,6]
[385816540,1758055909461,-400.0,0.0003178,6]
[385816541,1758055909472,-820.55,0.0003178,6]
[385816542,1758055909483,-934.84,0.0003178,6]
[385816543,1758055909494,-256.98527485,0.0003178,6]
[385816544,1758055909505,-400.0,0.0003178,6]
[385816545,1758055909516,-1000.0,0.0003178,6]
[385816546,1758055909526,-400.0,0.0003178,6]
[385816547,1758055909535,-400.0,0.0003178,6]
[385816548,1758055909545,-423.92,0.0003178,6]
[385816549,1758055909555,-400.0,0.0003178,6]
[385816550,1758055909566,-559.15,0.0003178,6]
[385816551,1758055909577,-600.6,0.0003178,6]
[385816552,1758055909589,-400.0,0.0003178,6]
[385816553,1758055909599,-805.77,0.0003178,6]
[385816554,1758055909610,-400.0,0.0003178,6]
[385816555,1758055909621,-400.0,0.0003178,6]
[385816556,1758055909631,-1316.13,0.0003178,6]
[385816557,1758055909644,-1155.56,0.0003178,6]
[385816558,1758055909654,-400.0,0.0003178,6]
[385816559,1758055909665,-160.25263061,0.0003178,6]
[385816560,1758055909675,-910.36,0.0003178,6]
[385816561,1758055909686,-400.0,0.0003178,6]
[385816562,1758055909696,-400.0,0.0003178,6]
[385816563,1758055909707,-597.27,0.0003178,6]
[385816564,1758055909716,-655.36,0.0003178,6]
[385816565,1758055909727,-465.08,0.0003178,6]
[385816566,1758055909737,-1000.65,0.0003178,6]
[385816567,1758055909747,-2311.18,0.0003178,6]
[385816568,1758055909757,-400.0,0.0003178,6]
[385816569,1758055909767,-1273.95,0.0003178,6]
[385816570,1758055909777,-471.4,0.0003178,6]
[385816571,1758055909787,-846.63,0.0003178,6]
[385816572,1758055909797,-400.0,0.0003178,6]
[385816573,1758055909806,-560.78,0.0003178,6]
[385816574,1758055909816,-400.0,0.0003178,6]
[385816575,1758055909826,-14098.53,0.0003178,6]
[385816576,1758055909835,-937.69,0.0003178,6]
[385816577,1758055909845,-182.61,0.0003178,6]
[385816578,1758055909855,-400.0,0.0003178,6]
[385816579,1758055909864,-400.0,0.0003178,6]
[385816580,1758055909874,-503.05,0.0003178,6]
[385816581,1758055909884,-553.78,0.0003178,6]
[385816582,1758055909894,-400.0,0.0003178,6]
[385816583,1758055909903,-309.21556114,0.0003178,6]
[385816584,1758055909913,-400.0,0.0003178,6]
[385816585,1758055909923,-400.0,0.0003178,6]
[385816586,1758055909933,-567.68,0.0003178,6]
[385816587,1758055909943,-824.87,0.0003178,6]
[385816588,1758055909952,-526.12,0.0003178,6]
[385816589,1758055909962,-400.0,0.0003178,6]
[385816590,1758055909972,-2437.93,0.0003178,6]
[385816591,1758055909981,-400.0,0.0003178,6]
[385816592,1758055909991,-400.0,0.0003178,6]
[385816593,1758055910001,-400.0,0.0003178,6]
[385816594,1758055910010,-661.2,0.0003178,6]
[385816595,1758055910020,-756.47,0.0003178,6]
[385816596,1758055910031,-542.28,0.0003178,6]
[385816597,1758055910040,-400.0,0.0003178,6]
[385816598,1758055910049,-967.74,0.0003178,6]
[385816599,1758055910059,-400.0,0.0003178,6]
[385816600,1758055910068,-780.22,0.0003178,6]
[385816601,1758055910078,-934.86,0.0003178,6]
[385816602,1758055910088,-400.0,0.0003178,6]
[385816603,1758055910098,-400.0,0.0003178,6]
[385816604,1758055910107,-471.94,0.0003178,6]
[385816605,1758055910117,-1066.11,0.0003178,6]
[385816606,1758055910126,-400.0,0.0003178,6]
[385816607,1758055910136,-3476.13,0.0003178,6]
[385816608,1758055910145,-1084.85,0.0003178,6]
[385816609,1758055910155,-400.0,0.0003178,6]
[385816610,1758055910164,-882.36,0.0003178,6]
[385816611,1758055910174,-933.57,0.0003178,6]
[385816612,1758055910184,-593.88,0.0003178,6]
[385816613,1758055910194,-1071.43,0.0003178,6]
[385816614,1758055910204,-400.0,0.0003178,6]
[385816615,1758055910214,-748.66,0.0003178,6]
[385816616,1758055910224,-400.0,0.0003178,6]
[385816617,1758055910234,-263.98412802,0.0003178,6]
[385816618,1758055910243,-400.0,0.0003178,6]
[385816619,1758055910254,-404.4894033,0.0003178,6]
[385816620,1758055910263,-400.0,0.0003178,6]
[385816621,1758055910272,-400.0,0.0003178,6]
[385816622,1758055910282,-451.23,0.0003178,6]
[385816623,1758055910292,-400.0,0.0003178,6]
[385816624,1758055910301,-418.64405282,0.0003178,6]
[385816625,1758055910311,-400.0,0.0003178,6]
[385816626,1758055910320,-493.33,0.0003178,6]
[385816627,1758055910330,-669.04,0.0003178,6]
[385816628,1758055910339,-400.0,0.0003178,6]
[385816629,1758055910353,-400.0,0.0003178,6]
[385816630,1758055910362,-560.66,0.0003178,6]
[385816631,1758055910372,-400.0,0.0003178,6]
[385816632,1758055910381,-673.15,0.0003178,6]
[385816633,1758055910391,-735.64,0.0003178,6]
[385816634,1758055910401,-456.54579037,0.0003178,6]
[385816635,1758055910410,-400.0,0.0003178,6]
[385816636,1758055910421,-400.0,0.0003178,6]
[385816637,1758055910431,-400.0,0.0003178,6]
[385816638,1758055910441,-468.22,0.0003178,6]
[385816639,1758055910450,-400.0,0.0003178,6]
[385816640,1758055910460,-400.0,0.0003178,6]
[385816641,1758055910470,-1125.3,0.0003178,6]
[385816642,1758055910479,-552.42,0.0003178,6]
[385816643,1758055910489,-400.0,0.0003178,6]
[385816644,1758055910499,-400.0,0.0003178,6]
[385816645,1758055910509,-909.09,0.0003178,6]
[385816646,1758055910519,-853.45,0.0003178,6]
[385816647,1758055910529,-527.01,0.0003178,6]
[385816648,1758055910538,-409.45646603,0.0003178,6]
[385816649,1758055910547,-401.89,0.0003178,6]
[385816650,1758055910557,-415.36334022,0.0003178,6]
[385816651,1758055910566,-400.0,0.0003178,6]
[385816652,1758055910575,-443.52,0.0003178,6]
[385816653,1758055910584,-852.14,0.0003178,6]
[385816654,1758055910593,-400.0,0.0003178,6]
[385816655,1758055910603,-479.26,0.0003178,6]
[385816656,1758055910612,-1176.21,0.0003178,6]
[385816657,1758055910622,-400.0,0.0003178,6]
[385816658,1758055910632,-408.20727079,0.0003178,6]
[385816659,1758055910642,-400.0,0.0003178,6]
[385816660,1758055910653,-1339.24,0.0003178,6]
[385816661,1758055910662,-4365.82,0.0003178,6]
[385816662,1758055910675,-590.86,0.0003178,6]
[385816663,1758055910686,-494.7,0.0003178,6]
[385816664,1758055910697,-400.0,0.0003178,6]
[385816665,1758055910707,-400.0,0.0003178,6]
[385816666,1758055910716,-995.2,0.0003178,6]
[385816667,1758055910726,-400.0,0.0003178,6]
[385816668,1758055910736,-588.68,0.0003178,6]
[385816669,1758055910746,-400.0,0.0003178,6]
[385816670,1758055910757,-400.0,0.0003178,6]
[385816671,1758055910767,-965.27,0.0003178,6]
[385816672,1758055910778,-400.0,0.0003178,6]
[385816673,1758055910788,-400.0,0.0003178,6]
[385816674,1758055910798,-1092.66,0.0003178,6]
[385816675,1758055910808,-915.59,0.0003178,6]
[385816676,1758055910818,-693.26,0.0003178,6]
[385816677,1758055910828,-400.0,0.0003178,6]
[385816678,1758055910837,-400.0,0.0003178,6]
[385816679,1758055910848,-400.0,0.0003178,6]
[385816680,1758055910860,-873.33,0.0003178,6]
[385816681,1758055910873,-659.67,0.0003178,6]
[385816682,1758055910884,-400.0,0.0003178,6]
[385816683,1758055910894,-724.66,0.0003178,6]
[385816684,1758055910903,-400.0,0.0003178,6]
[385816685,1758055910913,-400.0,0.0003178,6]
[385816686,1758055910924,-463.42,0.0003178,6]
[385816687,1758055910935,-400.0,0.0003178,6]
[385816688,1758055910945,-400.0,0.0003178,6]
[385816689,1758055910955,-400.0,0.0003178,6]
[385816690,1758055910964,-1187.49,0.0003178,6]
[385816691,1758055910974,-400.0,0.0003178,6]
[385816692,1758055910985,-611.4,0.0003178,6]
[385816693,1758055910999,-400.0,0.0003178,6]
[385816694,1758055911008,-825.95,0.0003178,6]
[385816695,1758055911018,-2551.67,0.0003178,6]
[385816696,1758055911029,-2051.76,0.0003178,6]
[385816697,1758055911038,-400.0,0.0003178,6]
[385816698,1758055911048,-2057.54,0.0003178,6]
[385816699,1758055911058,-752.32,0.0003178,6]
[385816700,1758055911068,-400.0,0.0003178,6]
[385816701,1758055911079,-449.27,0.0003178,6]
[385816702,1758055911089,-400.0,0.0003178,6]
[385816703,1758055911100,-633.85,0.0003178,6]
[385816704,1758055911112,-400.0,0.0003178,6]
[385816705,1758055911122,-457.48,0.0003178,6]
[385816706,1758055911132,-400.0,0.0003178,6]
[385816707,1758055911141,-400.0,0.0003178,6]
[385816708,1758055911151,-809.23,0.0003178,6]
[385816709,1758055911160,-1149.2,0.0003178,6]
[385816710,1758055911170,-400.0,0.0003178,6]
[385816711,1758055911179,-400.0,0.0003178,6]
[385816712,1758055911188,-400.0,0.0003178,6]
[385816713,1758055911198,-400.0,0.0003178,6]
[385816714,1758055911208,-406.64,0.0003178,6]
[385816715,1758055911217,-757.93,0.0003178,6]
[385816716,1758055911227,-678.31,0.0003178,6]
[385816717,1758055911237,-400.0,0.0003178,6]
[385816718,1758055911246,-669.07,0.0003178,6]
[385816719,1758055911256,-400.0,0.0003178,6]
[385816720,1758055911266,-435.49,0.0003178,6]
[385816721,1758055911275,-544.7,0.0003178,6]
[385816722,1758055911285,-400.0,0.0003178,6]
[385816723,1758055911295,-755.72,0.0003178,6]
[385816724,1758055911305,-213.00649681,0.0003178,6]
[385816725,1758055911314,-1264.24,0.0003178,6]
[385816726,1758055911324,-2602.41,0.0003178,6]
[385816727,1758055911333,-400.0,0.0003178,6]
[385816728,1758055911412,-651.62,0.0003178,6]
[385816729,1758055911422,-400.0,0.0003178,6]
[385816730,1758055911431,-400.0,0.0003178,6]
[385816731,1758055911441,-400.0,0.0003178,6]
[385816732,1758055911450,-426.35188737,0.0003178,6]
[385816733,1758055911460,-4091.94,0.0003178,6]
[385816734,1758055911469,-400.0,0.0003178,6]
[385816735,1758055911479,-400.0,0.0003178,6]
[385816736,1758055911488,-475.44,0.0003178,6]
[385816737,1758055911498,-400.0,0.0003178,6]
[385816738,1758055911508,-330.74729007,0.0003178,6]
[385816739,1758055911517,-405.59,0.0003178,6]
[385816740,1758055911526,-400.0,0.0003178,6]
[385816741,1758055911535,-405.86,0.0003178,6]
[385816742,1758055911545,-1940.41,0.0003178,6]
[385816743,1758055911554,-2380.39,0.0003178,6]
[385816744,1758055911563,-400.0,0.0003178,6]
[385816745,1758055911573,-400.0,0.0003178,6]
[385816746,1758055911582,-503.64,0.0003178,6]
[385816747,1758055911592,-400.0,0.0003178,6]
[385816748,1758055911601,-623.1,0.0003178,6]
[385816749,1758055911611,-852.09,0.0003178,6]
[385816750,1758055911620,-700.18,0.0003178,6]
[385816751,1758055911629,-794.77,0.0003178,6]
[385816752,1758055911640,-464.58,0.0003178,6]
[385816753,1758055911649,-243.28,0.0003178,6]
[385816754,1758055911659,-400.0,0.0003178,6]
[385816755,1758055911668,-439.63062072,0.0003178,6]
[385816756,1758055911678,-400.0,0.0003178,6]
[385816757,1758055911687,-400.0,0.0003178,6]
[385816758,1758055911696,-742.26,0.0003178,6]
[385816759,1758055911706,-885.24,0.0003178,6]
[385816760,1758055911715,-679.38,0.0003178,6]
[385816761,1758055911725,-419.78,0.0003178,6]
[385816762,1758055911734,-400.0,0.0003178,6]
[385816763,1758055911744,-283.30822333,0.0003178,6]
[385816764,1758055911753,-2714.52,0.0003178,6]
[385816765,1758055911762,-472.34,0.0003178,6]
[385816766,1758055911771,-1211.27,0.0003178,6]
[385816767,1758055911781,-400.0,0.0003178,6]
[385816768,1758055911790,-456.67,0.0003178,6]
[385816769,1758055911800,-400.0,0.0003178,6]
[385816770,1758055911809,-400.0,0.0003178,6]
[385816771,1758055911818,-1686.16,0.0003178,6]
[385816772,1758055911828,-500.0,0.00031782,7]
[385816773,1758055911837,-1000.0,0.000318,7]
[385816774,1758055911847,-500.0,0.00031803,7]
[385816775,1758055911856,-884.99864241,0.00031816,5]
[385816776,1758055911865,-2000.0,0.00031816,5]
[385816777,1758055911875,-2000.0,0.00031816,5]
[385816778,1758055911884,-1800.0,0.00031824,7]
[385816779,1758055911894,-800.0,0.00031825,7]
[385816780,1758055911903,-500.0,0.00031827,7]
[385816781,1758055911913,-500.7,0.00031832,7]
[385816782,1758055911922,-1227.23762745,0.00031844,2]
[385816783,1758055911932,-500.0,0.00031882,7]
[385816784,1758055911942,-1000.0,0.00031886,7]
[385816785,1758055911951,-921.2181,0.00031899,2]
[385816786,1758055911960,-20000.0,0.000319,7]
[385816787,1758055911970,-500.0,0.000319,11]
[385816788,1758055911979,-500.0,0.00031919,7]
[385816789,1758055911988,-800.0,0.00031949,7]
[385816790,1758055911998,-500.0,0.00031957,7]
[385816791,1758055912007,-2000.0,0.00031964,5]
[385816792,1758055912017,-241.0,0.0003197,2]
[385816793,1758055912026,-1800.0,0.00031975,7]
[385816794,1758055912036,-405.40790687,0.00031981,15]
[385816795,1758055912046,-1000.0,0.00031989,7]
[385816796,1758055912056,-153.43,0.00032,5]
[385816797,1758055912067,-179.0,0.00032,14]
[385816798,1758055912079,-514.53718124,0.00032,3]
[385816799,1758055912089,-470.0,0.0003204,2]
[385816800,1758055912098,-500.0,0.0003204,2]
[385816801,1758055912107,-1800.0,0.0003204,7]
[385816802,1758055912117,-500.0,0.00032042,7]
[385816803,1758055912126,-1800.0,0.00032047,7]
[385816804,1758055912136,-500.0,0.00032052,7]
[385816805,1758055912145,-437.21057552,0.00032054,6]
[385816806,1758055912155,-400.0,0.00032054,6]
[385816807,1758055912165,-400.0,0.00032054,6]
[385816808,1758055912174,-400.0,0.00032054,6]
[385816809,1758055912184,-400.0,0.00032054,6]
[385816810,1758055912194,-485.81397068,0.00032054,6]
[385816811,1758055912203,-400.0,0.00032054,6]
[385816812,1758055912213,-400.0,0.00032054,6]
[385816813,1758055912222,-400.0,0.00032054,6]
[385816814,1758055912232,-400.0,0.00032054,6]
[385816815,1758055912242,-400.0,0.00032054,6]
[385816816,1758055912253,-400.0,0.00032054,6]
[385816817,1758055912264,-179.97858737,0.00032054,6]
[385816818,1758055912273,-400.0,0.00032054,6]
[385816819,1758055912283,-400.0,0.00032054,6]
[385816820,1758055912294,-400.0,0.00032054,6]
[385816821,1758055912303,-363.25156205,0.00032054,6]
[385816822,1758055912312,-400.0,0.00032054,6]
[385816823,1758055912322,-400.0,0.00032054,6]
[385816824,1758055912332,-400.0,0.00032054,6]
[385816825,1758055912342,-400.0,0.00032054,6]
[385816826,1758055912357,-400.0,0.00032054,6]
[385816827,1758055912367,-400.0,0.00032054,6]
[385816828,1758055912377,-400.0,0.00032054,6]
[385816829,1758055912388,-400.0,0.00032054,6]
[385816830,1758055912399,-400.0,0.00032054,6]
[385816831,1758055912408,-466.26,0.00032054,6]
[385816832,1758055912417,-400.0,0.00032054,6]